Cogmind - Beta 11 @@@ ROGUE MODE // 2022.04.06 @ 23:55:46 Player: Wisp Result: Destroyed by S-10 Pest with Light Assault Rifle Performance ------------- Evolutions (0) 0 Regions Visited (4) 800 Robots Destroyed (15) 75 Value Destroyed (269) 269 Prototype IDs (3) 60 Alien Tech Used (0) 0 Bonus (300) 300 TOTAL SCORE: 1504 Bonus ------- Aligned with FarCom 300 Cogmind --------- Core Integrity 0/250 Matter 230/300 Energy 100/100 System Corruption 0% Temperature Cool (0) Movement Core (250) Ox4 Location -9/Mines Parts ------- > --- POWER (1) -------- (None) > --- PROPULSION (2) --- (None) > --- UTILITY (2) ------ Small Storage Unit Trap Reconfigurator > --- WEAPON (2) ------- Rocket Launcher Longsword +1 > --- INVENTORY (8) ---- Fission Core Fission Core Humpback High-capacity Battery (250) Large Matter Pod (150) Supersonic Drone Bay (1/1) Light Assault Rifle Peak State ------------ > --- POWER ------------ (None) > --- PROPULSION ------- (None) > --- UTILITY ---------- Small Storage Unit Trap Reconfigurator > --- WEAPON ----------- Rocket Launcher Longsword +1 > --- INVENTORY -------- Fission Core Fission Core Humpback High-capacity Battery Large Matter Pod Supersonic Drone Bay Light Assault Rifle [Rating: 22] Favorites ----------- Power Light Nuclear Core Engine Ion Engine Power Core Light Nuclear Core Propulsion Light Treads Treads Light Treads Leg Aluminum Leg Utility Humpback Device Sensor Array Storage Humpback Weapon Light Assault Rifle Energy Gun Particle Gun Ballistic Gun Light Assault Rifle Launcher Rocket Launcher Slashing Weapon Longsword +1 Build | -11 -10 -10 -10 -9 ------- Run | Scr Mat Min Exi Min Slots Evolved . | . . . . . Power . | . . . . . Propulsion . | . . . . . Utility . | . . . . . Weapon . | . . . . . Parts Attached 30 | 7 6 7 9 1 Power 4 | 1 1 2 . . Engine 2 | 1 . 1 . . Core 2 | . 1 1 . . Reactor . | . . . . . Propulsion 5 | 2 . 3 . . Treads 3 | 2 . 1 . . Leg 2 | . . 2 . . Wheel . | . . . . . Hover . | . . . . . Flight . | . . . . . Utility 12 | 2 2 1 7 . Device 6 | 1 2 1 2 . Storage 6 | 1 . . 5 . Processor . | . . . . . Hackware . | . . . . . Protection . | . . . . . Artifact . | . . . . . Weapon 9 | 2 3 1 2 1 Energy Gun 2 | . 2 . . . Energy Cannon . | . . . . . Ballistic Gun 5 | 2 1 1 1 . Ballistic Cannon . | . . . . . Launcher 1 | . . . . 1 Special Weapon . | . . . . . Impact Weapon . | . . . . . Slashing Weapon 1 | . . . 1 . Piercing Weapon . | . . . . . Special Melee Weapon . | . . . . . Unidentified Prototypes 3 | . . . 3 . Parts Lost 7 | . . 7 . . Power 2 | . . 2 . . Propulsion 2 | . . 2 . . Utility . | . . . . . Weapon 3 | . . 3 . . Highest Loss Streak 7 | . . 7 . . To Critical Strikes . | . . . . . Average Slot Usage (%) 58 | . 100 95 33 57 Core 4 | . 9 13 . . Treads 10 | . 28 26 . . Device 10 | . 23 27 1 14 Storage 11 | . 4 . 17 14 Energy Gun 4 | . 13 13 . . Ballistic Gun 13 | . 14 13 14 4 Slashing Weapon 1 | . . . 1 14 Naked Turns 16 | . . 16 . . Heaviest Build 201 | 13 14 12 201 13 Greatest Support 40 | 40 40 40 3 3 Greatest Overweight (x) 66 | . . . 66 4 Average Overweight (x) 2 | . . . 7 3 Largest Inventory Capacity 35 | 8 8 5 35 8 Average Capacity 16 | 6 5 5 24 8 Most Carried 8 | 6 8 5 8 8 Average Carried 5 | 3 5 4 5 7 Final Capacity 8 | 8 5 5 8 8 Final Carried 8 | 6 5 1 8 8 Class Distribution -------------------- 35% | Hauler-Mutant 35% | Mutant 28% | Scavenger-Mutant Dominant Class ---------------- Scavenger-Mutant | -10/Materials Scavenger-Mutant | -10/Mines Hauler-Mutant | -10/Exiles Mutant | -9/Mines Resources | -11 -10 -10 -10 -9 ----------- Run | Scr Mat Min Exi Min Matter Collected 545 | 234 159 44 108 . Remotely . | . . . . . Salvage Created 377 | 41 205 131 . . Parts 32 | 3 18 11 . . Haulers Intercepted . | . . . . . Recyclers Shooed . | . . . . . Parts Field Recycled . | . . . . . Retrieved Matter . | . . . . . Parts Self-Destructed . | . . . . . Prevented . | . . . . . Kills | -11 -10 -10 -10 -9 ------- Run | Scr Mat Min Exi Min Combat Hostiles Destroyed 10 | . 5 5 . . Guns 10 | . 5 5 . . Classes Destroyed 5 | 1 4 . . . Worker 1 | . 1 . . . Tunneler 2 | 2 . . . . Watcher 2 | . 2 . . . Swarmer 6 | . 3 3 . . Grunt 4 | . 2 2 . . Best Kill Streak 4 | 2 4 3 . . Combat Bots Only 3 | . 3 3 . . Max Kills in Single Turn 1 | 1 1 1 . . Gunslinging . | . . . . . Exploded . | . . . . . Melee . | . . . . . Uniques/NPCs Destroyed . | . . . . . Combat | -11 -10 -10 -10 -9 -------- Run | Scr Mat Min Exi Min Damage Taken 1092 | . 139 946 . 7 Core 252 | . 13 232 . 7 Absorbed by Shields . | . . . . . Core Remaining (%) 100 | 100 . . . . Volleys Fired 34 | 3 19 12 . . Largest 2 | 2 2 2 . . Hottest 85 | 40 85 85 . . Shots Fired 68 | 6 38 24 . . Gun 68 | 6 38 24 . . Cannon . | . . . . . Launcher . | . . . . . Special . | . . . . . Kinetic 39 | 6 19 14 . . Thermal 29 | . 19 10 . . Explosive . | . . . . . Electromagnetic . | . . . . . Robot Hit Streak 15 | 4 9 15 . . Robot Miss Streak 3 | 1 3 2 . . Penetration Max . | . . . . . Secondary Targets . | . . . . . Shots Hit Robots 45 | 4 23 18 . . Core Hits 25 | 3 14 8 . . Critical Kills . | . . . . . Critical Parts Destroyed . | . . . . . Critical Strikes 2 | . . 2 . . Burn 2 | . . 2 . . Melee Attacks . | . . . . . Impact . | . . . . . Slashing . | . . . . . Piercing . | . . . . . Sneak Attacks . | . . . . . Combat Hostiles . | . . . . . Follow-up Attacks . | . . . . . Damage Inflicted 584 | 34 305 245 . . Guns 584 | 34 305 245 . . Cannons . | . . . . . Explosions . | . . . . . Melee . | . . . . . Ramming . | . . . . . Kinetic 275 | 34 123 118 . . Thermal 309 | . 182 127 . . Explosive . | . . . . . Electromagnetic . | . . . . . Impact . | . . . . . Slashing . | . . . . . Piercing . | . . . . . Highest Corruption . | . . . . . Average Corruption . | . . . . . Corruption Purged . | . . . . . Corruption Blocked . | . . . . . Overload Shots . | . . . . . Overflow Damage . | . . . . . Projectiles . | . . . . . Explosions . | . . . . . Melee . | . . . . . Knockbacks . | . . . . . Impact . | . . . . . Kinetic . | . . . . . Secondary . | . . . . . Self-Inflicted Damage . | . . . . . Shots . | . . . . . Rammed . | . . . . . Targets Rammed . | . . . . . Kicked . | . . . . . Crushed . | . . . . . Highest Temperature 12 | . 12 7 . . Average Temperature 7 | . 9 4 . . Received Heat Transfer 57 | . 30 27 . . Siege Activations . | . . . . . Robots Corrupted . | . . . . . Combat Hostiles . | . . . . . Parts Fried . | . . . . . Impact Corruptions . | . . . . . Robots Melted . | . . . . . Combat Hostiles . | . . . . . Parts Melted . | . . . . . Heat Transferred 853 | . 409 444 . . Parts Sabotaged . | . . . . . Parts Stolen . | . . . . . Parts Stripped . | . . . . . Power Chain Reactions . | . . . . . Missiles Intercepted . | . . . . . Alert | -11 -10 -10 -10 -9 ------- Run | Scr Mat Min Exi Min Peak Influence 115 | 10 115 114 . 15 Initial 44 | . 6 44 . . Average 48 | 2 52 64 . . Maximum Alert Level . | . . . . . Low Security (%) 100 | 100 100 100 . 100 Level 1 . | . . . . . Level 2 . | . . . . . Level 3 . | . . . . . Level 4 . | . . . . . Level 5 . | . . . . . High Security . | . . . . . Max Security . | . . . . . Squads Dispatched 1 | . 1 . . . Investigation . | . . . . . Extermination . | . . . . . Reinforcement 1 | . 1 . . . Assault . | . . . . . Garrison . | . . . . . Intercept . | . . . . . Searches Triggered . | . . . . . Construction Impeded . | . . . . . Haulers Reinforced . | . . . . . Active Scanning Responses . | . . . . . Cargo Convoy Interrupts . | . . . . . Stealth | -11 -10 -10 -10 -9 --------- Run | Scr Mat Min Exi Min Distress Signals 3 | . 2 1 . . Communications Jammed . | . . . . . Distress Signals . | . . . . . Times Spotted 21 | . 12 7 . 2 Peak Tracking Total 3 | . 3 3 . . Tactical Retreats 1 | . 1 . . . Traps | -11 -10 -10 -10 -9 ------- Run | Scr Mat Min Exi Min Traps Triggered . | . . . . . Indirectly . | . . . . . Trap Hack Attempts . | . . . . . Triggered . | . . . . . Disarmed . | . . . . . Reprogrammed . | . . . . . Reused . | . . . . . Traps Extracted . | . . . . . Installed . | . . . . . Triggered . | . . . . . Machines | -11 -10 -10 -10 -9 ---------- Run | Scr Mat Min Exi Min Machines Disabled . | . . . . . Max in Single Turn . | . . . . . Machines Sabotaged . | . . . . . Garrisons Compromised . | . . . . . Overloaded Fab Kills . | . . . . . Hacking | -11 -10 -10 -10 -9 --------- Run | Scr Mat Min Exi Min Machines Accessed 3 | . 1 . 2 . Terminals 1 | . 1 . . . Fabricators . | . . . . . Repair Stations . | . . . . . Recycling Units . | . . . . . Scanalyzers . | . . . . . Garrison Access . | . . . . . Total Hacks 8 | . 2 . 6 . Successful 6 | . . . 6 . Failed 2 | . 2 . . . Catastrophic . | . . . . . Database Lockouts . | . . . . . Manual 2 | . . 1 1 . Terminals 2 | . 2 . . . Fabricators . | . . . . . Repair Stations . | . . . . . Recycling Units . | . . . . . Scanalyzers . | . . . . . Garrison Access . | . . . . . Terminal Hacks 6 | . . . 6 . Record 6 | . . . 6 . Fabricator Hacks . | . . . . . Repair Station Hacks . | . . . . . Recycling Unit Hacks . | . . . . . Scanalyzer . | . . . . . Garrison Access Hacks . | . . . . . Unauthorized Hacks . | . . . . . Terminals . | . . . . . Fabricators . | . . . . . Repair Stations . | . . . . . Recycling Units . | . . . . . Scanalyzers . | . . . . . Garrison Access . | . . . . . Data Cores Recovered . | . . . . . Used . | . . . . . Hacking Detections 1 | . . 1 . . Full Trace Events . | . . . . . Feedback Events . | . . . . . Feedback Blocked . | . . . . . Robot Schematics Acquired . | . . . . . Robots Built . | . . . . . Authchips . | . . . . . Time . | . . . . . Total Robot Build Rating . | . . . . . Part Schematics Acquired . | . . . . . Parts Built . | . . . . . Authchips . | . . . . . Time . | . . . . . Total Part Build Rating . | . . . . . Parts Repaired . | . . . . . Time . | . . . . . Parts Recycled . | . . . . . Recycled Matter . | . . . . . Retrieved Matter . | . . . . . Retrieved Components . | . . . . . Parts Scanalyzed . | . . . . . Part Schematics Acquired . | . . . . . Parts Damaged . | . . . . . Bothacking | -11 -10 -10 -10 -9 ------------ Run | Scr Mat Min Exi Min Used RIF Installer . | . . . . . Robots Hacked . | . . . . . Non-combat . | . . . . . Combat . | . . . . . Robot Hacks Applied . | . . . . . Relay Couplers Released . | . . . . . Fabnet Peak Effective % . | . . . . . Robots Rewired . | . . . . . Allies Hacked . | . . . . . Hacks Repelled . | . . . . . Allies | -11 -10 -10 -10 -9 -------- Run | Scr Mat Min Exi Min Total Allies 2 | . . 2 . . Largest Group 2 | . . 2 . . Highest-Rated Group 45 | . . 45 . . Highest-Rated Ally 31 | . . 31 . . Total Orders . | . . . . . Ally Attacks 6 | . . 6 . . Total Damage 41 | . . 41 . . Kills . | . . . . . Allies Corrupted . | . . . . . Allies Melted . | . . . . . Intel | -11 -10 -10 -10 -9 ------- Run | Scr Mat Min Exi Min Robot Analysis Total . | . . . . . Derelict Logs Recovered . | . . . . . Drone Launches . | . . . . . Drone Recoveries . | . . . . . Exploration | -11 -10 -10 -10 -9 ------------- Run | Scr Mat Min Exi Min Turns Passed 3760 | 118 798 557 2133 154 Spaces Moved 1345 | 60 407 299 514 65 Core 609 | 2 . 28 514 65 Treads 732 | 58 407 267 . . Legs 4 | . . 4 . . Wheels . | . . . . . Hover . | . . . . . Flight . | . . . . . Fastest Speed 50 | 50 160 50 50 200 Average Speed 256 | 156 160 149 410 231 Slowest Speed 3350 | 160 160 160 3350 250 Overloaded Moves . | . . . . . Propulsion Burnouts . | . . . . . Robots Hopped . | . . . . . Cave-ins Triggered . | . . . . . Exploration Rate (%) 40 | 5 50 46 72 27 Regions Visited 4 Branch Regions 3 Pre-discovered Areas 1 | . . . 1 . Known Exits Taken . | . . . . . Unknown Exits Taken 4 | 1 1 1 1 . Scrap Searched . | . . . . . Spaces Dug . | . . . . . Terrain Destroyed . | . . . . . Melee . | . . . . . Projectile . | . . . . . AOE . | . . . . . Terrain Rammed . | . . . . . Walls Destroyed . | . . . . . Machines Disabled . | . . . . . Actions | -11 -10 -10 -10 -9 --------- Run | Scr Mat Min Exi Min Total 1581 | 76 516 385 535 69 Wait 145 | 1 76 65 2 1 Move 1341 | 59 406 298 513 65 Hop . | . . . . . Pick Up 16 | 6 2 . 7 1 Fast Attach 18 | 7 3 3 5 . Attach 7 | . . 4 3 . Detach 3 | . . . 3 . Swap 5 | . 3 . 1 1 Drop 12 | . 7 3 1 1 Fire 34 | 3 19 12 . . Melee . | . . . . . Ram . | . . . . . Kick . | . . . . . Crush . | . . . . . Escape Stasis . | . . . . . Rewire . | . . . . . Trap . | . . . . . Miscellaneous . | . . . . . Route ------- -11/Scrapyard -10/Materials -10/Mines (discovered 2 exits: [*Mat] / *Exi) -10/Exiles -9/Mines History --------- Turn | Location | Event 18 | -11/Scrapyard | Discovered new exit (range 15) 119 | -11/Scrapyard | Entered Materials 312 | -10/Materials | Build established: Mutant 454 | -10/Materials | Discovered new exit (range 16) 665 | -10/Materials | Build established: Scavenger-Mutant 917 | -10/Materials | Entered Mines 939 | -10/Mines | Met a Derelict bent on vengeance 966 | -10/Mines | Assembled infested the area 1040 | -10/Mines | Discovered new exit (range 7) 1197 | -10/Mines | Discovered new exit (range 5) 1455 | -10/Mines | Core integrity fell below 50% 1456 | -10/Mines | Core integrity fell below 20% 1458 | -10/Mines | Released all parts (4) 1474 | -10/Mines | Entered Exiles 1484 | -10/Exiles | Lost 7 parts (2p2n3w) 1502 | -10/Exiles | Met EX-HEX 1565 | -10/Exiles | Met EX-DEC 1608 | -10/Exiles | Learned location of Zion (-6) 1964 | -10/Exiles | Build established: Hauler-Mutant 2449 | -10/Exiles | Discovered new exit (range 14) 3208 | -10/Exiles | Met EX-BIN 3238 | -10/Exiles | Aligned with FarCom system 3240 | -10/Exiles | Given EX-Vault access code 3310 | -10/Exiles | Build established: Mutant 3384 | -10/Exiles | Opened EX-Vault 3396 | -10/Exiles | Found Prototype Device 3398 | -10/Exiles | Identified Supersonic Drone Bay 3405 | -10/Exiles | Found Prototype Slashing Weapon 3405 | -10/Exiles | Identified Longsword +1 3414 | -10/Exiles | Found Prototype Device 3415 | -10/Exiles | Identified Trap Reconfigurator 3461 | -10/Exiles | Warned to stay clear of 0b10 Research branches 3607 | -10/Exiles | Stole three prototypes: Longsword +1, Trap Reconfigurator, Supersonic Drone Bay 3607 | -10/Exiles | Entered Mines 3654 | -9/Mines | Received a Rocket Launcher from a helpful Derelict 3761 | -9/Mines | Destroyed by S-10 Pest with Light Assault Rifle Last Messages --------------- 03651_ WL-14M(g): "Everyone knows a good old rocket launcher goes a long way." 03652_ WL-14M(g): "Need to get rid of a swarm? Done. Need a big hole in the wall? Done." 03653_ WL-14M(g): "Need a small hole in the wall? Leave that to the mining laser wimps, I say!" 03654_ WL-14M(g): "Would you like a rocket launcher? I know I would if I were you, so I'm going to lend you mine." 03654_ WL-14M(g) slips back into the shadows. 03656_ Dropped Rigged Lgt. Fission Core. 03657_ Acquired Rocket Launcher. 03703_ K-01 Serf collects debris. 03735_ T-07 Excavator is excavating. 03739_ K-01 Serf collects debris. 03739_ T-07 Excavator is excavating. 03748_ U-05 Engineer lays Concrete. 03748_ T-07 Excavator is excavating. 03749_ U-05 Engineer lays Concrete. 03751_ U-05 Engineer builds a Wall. 03755_ K-01 Serf collects debris. Map ----- +----------------------------------------------------+ | | | | | | | | | | | | | | | ?????????????????????????????????????????????????? | | ?????????????????????????????????????????????????? | | ?????????????????????????????????????????????????? | | ?????????????????????????????????????????????????? | | ?????????????????????????????????????????????????? | | ?????????????????????????????????????????????????? | | ??????????????#?#????????????????????????????????? | | ??????????????? #???????????????????????????????? | | ??????????????? ???????????????????????????????? | | ???????????????# #??????????????????????????????? | | ?????????????### #??????????????????????????????? | | ?????????????? #??????????????????????????????? | | ???????????????# ##?????????????????????????????? | | ???????????????# ##????????????????????????????? | | ??????????????## ###??????????????????????????? | | ??????????????# ########???????????????????? | | ??????????????# #####???????????????? | | ????????####?## #???????????????? | | ??#????## ### @ #?????????????? | | ??# ??## #### #????????????? | | ??# ## ##????? #???????????? | | ??# ##????????k #??????????? | | ??# ###??????????? #?????????? | | ??????## ##??????? ?????? ??????????? | | ???????## ##?????? ????????ls??????????? | | ????????##### ##???? ???????g?s?????????? | | ???????????## #### #?????????s????????? | | ???????????# #???????????????????? | | ???????????# ###???????????????????????? | | ???????????## ##?????????????????????????? | | ????????????## # ##??????????????????????????? | | ????????????## ## #???????????????????????????? | | ???????????## #?# ##???????????????????????????? | | ???????????# ##?##????????????????????????????? | | ???????????# ##??????????????????????????????? | | ???????????## #??????????????????????????????? | | ???????????## ##?????????????????????????????? | | ?????????### #?????????????????????????????? | | ????????## #?????????????????????????????? | | ????????# #?????????????????????????????? | | ????????# # ##?????????????????????????????? | | ????????## ## ###??????????????????????????????? | | ?????????###?# #????????????????????????????????? | +----------------------------------------------------+ Best States ------------- Heat Dissipation 39 Energy Generation 14 Energy Capacity 350 Matter Stores 450 Matter Capacity 450 Sight Range 16 Robot Scan Range 14 Terrain Scan Density 10 Evasion (%) 50 Recoil Reduction 2 Item Schematics ----------------- None Robot Schematics ------------------ None Fabricated ------------ Nothing Alien Tech Used ----------------- None Achievements -------------- None Challenges ------------ None Game ------ Seed ThiefZioniteSuperbattery Manual? 0 Play Time 00:33:31 Cumulative 27.7 hours Start 2022.04.06 @ 23:19:29 End 2022.04.06 @ 23:55:46 Sessions 1 Manual Loads 0 Difficulty Rogue Special Mode None Game No. 18 Rogue 18 Adventurer 0 Explorer 0 Win Type - Total 0 Types 0/0/0/0/0/0/0/0/0 Lore% 22 Gallery% 28 Achievement% 23 Wizard Run 0 Options --------- ASCII 0 Keyboard 0 Movement Numpad Keybinds 0 Fullscreen 1 Font 18/SmallcapsGlow Map View 76x50 Tactical HUD 1 Map Filters NONE Filters NONE Steam 1 RUN: 8a583e5e-a8b6-47bb-ab69-780cf78148a3